bitfinex-derivatives/quotes_ETHF0:USTF0_20241027
["timestamp","ask_amount","ask_price","bid_price","bid_amount"]
[1730047449845,1.55604365,2498.9,2498.8,0.5042]
[1730047453043,1.55604365,2498.9,2498.8,0.90481]
[1730047453446,1.55604365,2498.9,2498.8,0.5042]
[1730047459856,0.40059,2498.9,2498.8,6.06182365]
[1730047460056,0.40059,2499.0,2498.9,0.40058]
[1730047460259,0.40059,2499.0,2498.9,1.55601365]
[1730047460556,0.40059,2499.0,2498.9,5.55761365]
[1730047460750,4.0488,2499.2,2498.9,5.15703365]
[1730047460956,4.0488,2499.2,2498.8,0.5042]
[1730047460957,4.44934,2499.2,2499.1,1.55599365]
[1730047461356,4.44934,2499.2,2499.1,2.09889365]
[1730047461553,3.60834,2499.2,2499.1,2.09889365]
[1730047461856,0.40054,2499.2,2499.1,2.09889365]
[1730047463057,0.46203011,2499.2,2499.1,2.09889365]
[1730047463656,0.46203011,2499.2,2499.1,1.69833365]
[1730047463860,1.61746376,2499.2,2499.1,0.5429]
[1730047466858,1.61746701,2499.2,2499.1,0.5429]
[1730047467465,1.61746975,2499.2,2499.1,0.5429]
[1730047468060,1.61746975,2499.2,2499.1,0.94346]
[1730047469758,1.61746975,2499.2,2499.1,0.5429]
[1730047470168,1.55597365,2499.2,2499.1,0.5429]
[1730047472373,1.55597365,2499.2,2499.1,0.94346]
[1730047472562,1.55597365,2499.2,2499.1,0.5429]
[1730047473363,1.55597365,2499.2,2499.1,0.94346]
[1730047474061,1.55597365,2499.2,2499.1,0.5429]
[1730047485584,0.40054,2499.2,2499.1,0.5429]
[1730047491583,1.55597365,2499.2,2499.1,0.5429]
[1730047491783,1.55597365,2499.2,2498.8,1.50468023]
[1730047491784,0.40059,2498.9,2498.8,1.50468023]
[1730047491984,0.40059,2498.9,2498.8,3.06071388]
[1730047492889,3.08072365,2499.2,2498.8,2.66011388]
[1730047493083,0.40056,2499.1,2499.0,1.55599365]
[1730047493282,0.46204657,2499.1,2499.0,1.55599365]
[1730047493482,0.40056,2499.1,2499.0,1.55599365]
[1730047493681,0.40056,2499.1,2499.0,4.76379365]
[1730047495602,0.40056,2499.1,2499.0,3.2078]
[1730047495900,0.46204765,2499.1,2499.0,1.15543365]
[1730047496190,0.46204765,2499.1,2499.0,1.61493365]
[1730047496596,0.46204765,2499.1,2499.0,2.10013365]
[1730047496792,0.46204765,2499.1,2499.0,2.50071365]
[1730047496997,0.46204765,2499.1,2499.0,2.10013365]
[1730047496998,0.46204553,2499.1,2499.0,2.10013365]
[1730047497197,0.40056,2499.1,2499.0,2.50071365]
[1730047498296,0.40056,2499.1,2499.0,6.50231365]
[1730047499093,1.00131,2499.4,2499.0,6.10173365]
[1730047499296,0.40056,2499.1,2499.0,0.9447]
[1730047499491,0.40056,2499.1,2499.0,2.50069365]
[1730047499689,1.84235,2499.3,2499.0,2.50069365]
[1730047499690,0.40055,2499.3,2499.2,0.40052]
[1730047499896,0.46203388,2499.3,2499.2,1.55595365]
[1730047500090,0.40055,2499.3,2499.2,5.55755365]
[1730047500598,0.40055,2499.3,2499.2,1.55595365]
[1730047501989,0.40055,2499.3,2499.2,4.76375365]
[1730047502195,0.40046,2499.8,2499.7,0.40045]
[1730047502495,1.842,2500.1,2499.8,0.40043]
[1730047502496,0.40044,2499.9,2499.8,0.40043]
[1730047502694,0.40043,2500.0,2499.9,1.15543365]
[1730047502893,1.15543365,2500.0,2499.7,0.9468]
[1730047503099,0.40045,2499.8,2499.7,0.9468]
[1730047503298,0.40045,2499.8,2499.7,2.10223365]
[1730047503499,0.40045,2499.8,2499.7,0.9468]
[1730047504095,0.40046,2499.7,2499.6,3.2078]
[1730047504293,0.40046,2499.7,2499.6,4.36323365]
[1730047504495,0.40046,2499.7,2499.6,4.76371365]
[1730047505099,0.40046,2499.7,2499.6,4.36323365]
[1730047505500,0.40046,2499.7,2499.6,4.76371365]
[1730047505698,0.40046,2499.7,2499.6,4.36323365]
[1730047506393,1.15543365,2499.8,2499.5,1.55592365]
[1730047506592,0.4005,2499.5,2499.4,0.9505]
[1730047507096,0.4005,2499.5,2499.4,0.4949]
[1730047507097,1.55593365,2499.5,2499.4,0.4949]
[1730047508296,0.55577363,2499.5,2499.4,0.4949]
[1730047509003,0.95627363,2499.5,2499.4,0.4949]
[1730047510296,0.95627363,2499.5,2499.2,1.0003201]
[1730047510297,0.55577363,2499.5,2499.2,1.0003201]
[1730047510499,0.40053,2499.3,2499.2,1.0003201]
[1730047510802,0.40053,2499.3,2499.2,2.15575375]
[1730047510997,0.40053,2499.3,2499.2,2.55629375]
[1730047511302,0.40053,2499.3,2499.2,2.15575375]
[1730047511501,0.40053,2499.3,2499.2,2.55629375]
[1730047512802,1.55596365,2499.3,2499.2,1.0003201]
[1730047514500,5.55756365,2499.3,2499.2,1.0003201]
[1730047515303,8.76536365,2499.3,2499.2,1.0003201]
[1730047515709,12.97057257,2499.3,2499.2,1.0003201]
[1730047518119,3.60833,2499.3,2499.2,1.0003201]
[1730047518312,8.76536365,2499.3,2499.2,1.0003201]
[1730047518914,9.60536365,2499.3,2499.2,1.0003201]
[1730047520215,9.26624992,2499.3,2498.8,1.00048023]
[1730047520413,1.55602365,2498.9,2498.8,1.00048023]
[1730047520912,5.55762365,2498.9,2498.8,1.00048023]
[1730047522113,1.55602365,2498.9,2498.8,1.00048023]
[1730047522315,0.40059,2498.9,2498.8,2.55652388]
[1730047522819,0.40056,2499.1,2499.0,0.40056]
[1730047523020,0.40056,2499.1,2499.0,1.55599365]
[1730047523310,0.84,2499.2,2499.1,0.40056]
[1730047523311,0.40055,2499.2,2499.1,0.40056]
[1730047523515,0.40055,2499.2,2499.1,1.55599365]
[1730047524116,0.40057,2499.1,2499.0,1.55600365]
[1730047525009,0.40055,2499.2,2499.1,0.40055]
[1730047526013,0.40055,2499.2,2498.9,1.3782]
[1730047526014,0.40058,2499.0,2498.9,2.93422365]
[1730047526411,0.40058,2499.0,2498.9,6.93582365]
[1730047527515,0.40058,2499.0,2498.9,10.14362365]
[1730047527820,0.40058,2499.0,2498.9,9.74303365]
[1730047528015,0.40058,2499.0,2498.9,10.14362365]
[1730047528607,0.40058,2499.0,2498.9,6.93582365]
[1730047528918,0.40058,2499.0,2498.9,10.14362365]
[1730047529418,0.40058,2499.0,2498.9,6.93582365]
[1730047529615,0.40058,2499.0,2498.9,10.14362365]
[1730047530010,0.40058,2499.0,2498.9,6.93582365]
[1730047530421,0.40058,2499.0,2498.9,10.14362365]
[1730047533118,0.40058,2499.0,2498.9,6.14202365]
[1730047533421,0.40058,2499.0,2498.9,10.14362365]
[1730047536225,0.40058,2499.0,2498.9,6.14202365]
[1730047538326,0.40057,2499.1,2499.0,0.40056]
[1730047538627,0.40057,2499.1,2499.0,1.55599365]
[1730047539021,0.40055,2499.2,2499.1,0.40056]
[1730047539222,1.24054,2499.3,2499.2,0.40054]
[1730047539422,1.24054,2499.3,2499.2,3.60834]
[1730047540224,1.15543365,2499.4,2499.2,3.2078]
[1730047540528,2.39596365,2499.4,2499.3,1.32313]
[1730047540717,2.39596365,2499.4,2499.3,1.78933]
[1730047541127,1.24053,2499.4,2499.3,1.78933]
[1730047541329,2.39596365,2499.4,2499.3,1.3888]
[1730047541529,2.39596365,2499.4,2499.3,1.78933]
[1730047542927,0.84,2499.5,2499.3,2.54423365]
[1730047543124,0.4005,2499.6,2499.5,1.55591365]
[1730047543631,2.39591365,2499.7,2499.6,0.40048]
[1730047545029,2.39591365,2499.7,2499.5,1.55592365]
[1730047545030,0.40048,2499.6,2499.5,1.55592365]
[1730047547024,0.40048,2499.6,2499.5,1.15543365]
[1730047547433,0.40048,2499.6,2499.2,3.2078]
[1730047547434,0.40053,2499.3,2499.2,3.2078]
[1730047547631,0.40053,2499.3,2499.0,0.89077]
[1730047547632,0.40056,2499.1,2499.0,0.89077]
[1730047547830,0.40056,2499.1,2499.0,2.04620365]
[1730047550932,0.40056,2499.1,2499.0,0.4902]
[1730047551331,0.85266,2499.1,2499.0,0.4902]
[1730047551837,0.85266,2499.1,2499.0,3.698]
[1730047552242,0.85266,2499.1,2499.0,3.2078]
[1730047552437,1.32776,2499.1,2499.0,3.2078]
[1730047553338,1.32776,2499.1,2499.0,4.76381365]
[1730047553541,1.32776,2499.1,2499.0,4.36323365]
[1730047554439,1.32776,2499.1,2499.0,3.2078]
[1730047558138,2.16776,2499.1,2499.0,3.60838]
[1730047558843,2.16776,2499.1,2499.0,3.2078]
[1730047561144,3.32319365,2499.1,2499.0,3.2078]
[1730047561541,3.32319365,2499.1,2499.0,3.60838]
[1730047561743,3.32319365,2499.1,2499.0,3.2078]
[1730047563238,2.92263365,2499.1,2498.9,2.01082365]
[1730047563446,0.40058,2499.0,2498.9,5.21862365]
[1730047566243,0.40058,2499.0,2498.9,2.01082365]
[1730047566743,0.40058,2499.0,2498.9,6.26880832]
[1730047568843,0.40058,2499.0,2498.9,3.06100832]
[1730047569041,0.40058,2499.0,2498.9,6.26880832]
[1730047571051,1.24057,2499.1,2499.0,0.40058]
[1730047571252,1.24056,2499.2,2499.1,0.40055]
[1730047571450,1.24056,2499.2,2499.1,0.86085]
[1730047571748,1.24056,2499.2,2499.1,0.9509]
[1730047572247,1.24056,2499.2,2499.1,1.35146]
[1730047573248,1.24056,2499.2,2499.1,0.9509]
[1730047575146,2.39599365,2499.2,2499.1,0.9509]
[1730047575345,2.85319365,2499.2,2499.1,0.9509]
[1730047575550,2.85319365,2499.2,2499.1,0.4906]
[1730047576548,0.40056,2499.2,2499.1,0.4906]
[1730047576753,0.40056,2499.2,2499.1,1.64603365]
[1730047577144,0.40056,2499.2,2499.1,2.04659365]
[1730047579460,1.24054,2499.3,2499.2,0.40052]
[1730047579650,1.24054,2499.3,2499.2,4.76375365]
[1730047579857,0.40054,2499.3,2499.2,4.76375365]
[1730047580060,0.40053,2499.4,2499.3,0.40052]
[1730047580257,1.24051,2499.5,2499.4,0.40051]
[1730047580558,1.24051,2499.5,2499.4,1.55594365]
[1730047580752,2.39594365,2499.5,2499.4,0.85921]
[1730047581352,1.24051,2499.5,2499.4,2.01464365]
[1730047582060,0.84,2499.5,2499.4,2.01464365]
[1730047582361,4.76372365,2499.6,2499.5,0.4005]
[1730047582748,4.76372365,2499.6,2499.5,1.55593365]
[1730047583153,1.55592365,2499.6,2499.5,0.4005]
[1730047583664,0.40049,2499.6,2499.5,0.4005]
[1730047584161,1.99543365,2499.7,2499.5,4.36323365]
[1730047584456,0.84,2499.7,2499.6,1.55591365]
[1730047584659,1.24046,2499.8,2499.7,0.40045]
[1730047584867,1.24046,2499.8,2499.7,2.01909365]
[1730047584868,2.39589365,2499.8,2499.7,2.01909365]
[1730047585658,0.40044,2499.9,2499.8,0.40044]
[1730047585854,1.15543365,2500.0,2499.8,4.85103365]
[1730047586060,1.55586365,2500.0,2499.9,0.40043]
[1730047586256,21.86339586,2500.4,2499.9,0.40043]
[1730047586257,1.00071,2500.9,2499.9,6.15649365]
[1730047586458,1.15543365,2500.7,2500.4,1.15543365]
[1730047586657,0.84,2500.8,2500.3,1.55579365]
[1730047586658,0.40035,2500.4,2500.3,1.55579365]
[1730047587062,0.4004,2500.1,2500.0,1.05061728]
[1730047587266,0.40039,2500.2,2500.0,0.40041]
[1730047587567,0.40039,2500.2,2500.1,1.15543365]
[1730047587760,0.40039,2500.2,2500.1,4.36323365]
[1730047588262,0.84,2500.3,2500.1,4.36323365]
[1730047588570,1.24037,2500.3,2500.1,4.76362365]
[1730047589061,1.24037,2500.3,2500.2,0.40038]
[1730047589267,1.24037,2500.3,2500.1,4.76361365]
[1730047589470,1.24037,2500.3,2500.2,1.34188]
[1730047589659,1.24037,2500.3,2500.2,0.9415]
[1730047591463,0.84,2500.3,2500.2,2.49731365]
[1730047591671,1.24037,2500.3,2500.2,2.49731365]
[1730047592269,0.84,2500.3,2500.2,2.49731365]
[1730047592467,0.84,2500.5,2500.3,0.40035]
[1730047592767,0.40035,2500.4,2500.3,0.40035]
[1730047593771,0.40034,2500.5,2500.4,0.40035]
[1730047593959,0.40034,2500.5,2500.4,1.55578365]
[1730047594162,0.40033,2500.5,2500.4,1.15543365]
[1730047595567,0.40033,2500.5,2500.4,4.36323365]
[1730047595968,0.40033,2500.5,2500.4,4.76358365]
[1730047596765,0.4852,2500.9,2500.4,9.5178673]
[1730047597072,0.85947,2500.9,2500.8,1.15543365]
[1730047597766,0.40029,2500.8,2500.7,2.07863365]
[1730047598175,0.40029,2500.8,2500.7,1.61023365]
[1730047598373,1.55572365,2500.8,2500.7,0.4548]
[1730047598574,1.15543365,2500.8,2500.6,1.15543365]
[1730047598767,0.4003,2500.7,2500.6,1.15543365]
[1730047599163,0.40033,2500.5,2500.4,4.36323365]
[1730047599976,0.40033,2500.5,2500.4,1.15543365]
[1730047600174,1.00073,2500.8,2500.4,5.15463365]
[1730047600370,1.15543365,2500.8,2500.6,1.15543365]
[1730047600668,0.40033,2500.5,2500.4,1.55578365]
[1730047600869,0.40033,2500.5,2500.4,4.36323365]
[1730047601477,0.40033,2500.5,2500.4,1.15543365]
[1730047601674,0.40033,2500.5,2500.4,4.36323365]
[1730047603580,0.40033,2500.5,2500.4,4.76358365]
[1730047603875,0.40033,2500.5,2500.4,4.36323365]
[1730047604275,0.40033,2500.5,2500.4,4.76358365]
[1730047604874,0.40033,2500.5,2500.4,4.36323365]
[1730047605283,0.40033,2500.5,2500.4,4.76358365]
[1730047605678,0.40033,2500.5,2500.4,1.15543365]
[1730047606186,0.40033,2500.5,2500.4,4.36323365]
[1730047607385,0.40033,2500.5,2500.4,4.76358365]
[1730047607581,0.40033,2500.5,2500.4,4.36323365]
[1730047607788,1.55576365,2500.5,2500.4,4.36323365]
[1730047607979,1.55576365,2500.5,2500.4,3.2078]
[1730047608478,1.55576365,2500.5,2500.4,4.76358365]
[1730047608985,0.40033,2500.5,2500.4,4.76358365]
[1730047609188,0.40033,2500.5,2500.4,5.26398365]
[1730047610683,0.40033,2500.5,2500.1,3.60819]
[1730047610684,1.15543365,2500.5,2500.1,3.60819]
[1730047610884,0.40038,2500.2,2500.1,3.60819]
[1730047611685,0.40038,2500.2,2500.1,4.76362365]
[1730047612776,0.40038,2500.2,2500.1,4.36323365]
[1730047613087,0.40038,2500.2,2500.1,4.76363365]
[1730047613279,0.40038,2500.2,2500.1,4.36323365]
[1730047613675,0.40038,2500.2,2500.1,4.76363365]
[1730047614282,0.40038,2500.2,2500.1,4.36323365]
[1730047614481,0.40038,2500.2,2500.1,4.76363365]
[1730047615788,0.40038,2500.2,2500.1,1.55583365]
[1730047615992,0.40038,2500.2,2500.1,4.76363365]
[1730047617189,0.40038,2500.2,2500.1,3.2078]
[1730047617392,0.40038,2500.2,2500.1,3.6082]
[1730047617595,0.40038,2500.2,2500.1,4.76363365]
[1730047619790,0.40038,2500.2,2500.1,3.2078]
[1730047620102,0.40038,2500.2,2500.1,3.6082]
[1730047620394,0.40038,2500.2,2500.1,4.76363365]
[1730047620688,1.3329,2500.4,2500.1,4.36323365]
[1730047620889,0.40037,2500.3,2500.2,1.55580365]
[1730047621083,0.40037,2500.3,2500.2,2.03170365]
[1730047621284,0.40037,2500.3,2500.2,2.51070365]
[1730047621887,0.4929,2500.4,2500.2,2.11033365]
[1730047622086,0.89326,2500.4,2500.3,0.40037]
[1730047623089,0.84,2500.5,2500.3,1.15543365]
[1730047623286,1.24034,2500.5,2500.4,0.87325]
[1730047624393,0.84,2500.5,2500.4,4.08105]
[1730047624792,0.84,2500.5,2500.4,5.23648365]
[1730047624996,0.4661,2501.0,2500.4,4.83613365]
[1730047625292,0.4661,2501.0,2500.6,1.55575365]
[1730047625293,0.4003,2500.7,2500.6,1.55575365]
[1730047625689,1.55573365,2500.7,2500.6,1.55575365]
[1730047627286,0.4003,2500.8,2500.7,0.4003]
[1730047627490,0.4003,2500.8,2500.7,4.76353365]
[1730047627699,2.85481365,2500.9,2500.8,0.40029]
[1730047627993,1.24028,2500.9,2500.8,2.03162365]
[1730047628402,4.70351,2501.1,2500.8,2.03162365]
[1730047628403,1.65053365,2501.1,2500.8,2.03162365]
[1730047628694,1.24025,2501.0,2500.9,1.55569365]
[1730047629399,0.4951,2501.1,2500.9,1.15543365]
[1730047629596,0.89535,2501.1,2501.0,1.55568365]
[1730047629795,0.89534,2501.1,2501.0,1.55568365]
[1730047629999,0.89534,2501.1,2501.0,1.15543365]
[1730047630401,0.40024,2501.1,2501.0,1.55568365]
[1730047631103,0.40024,2501.1,2501.0,1.15543365]
[1730047631991,0.40024,2501.1,2500.8,0.4759]
[1730047631992,2.15605365,2501.1,2500.8,0.4759]
[1730047632187,0.40027,2500.9,2500.8,0.4759]
[1730047633703,0.40027,2500.9,2500.8,1.63133365]
[1730047636504,0.40027,2500.9,2500.8,0.4759]
[1730047637806,0.40029,2500.8,2500.7,4.76353365]
[1730047638702,0.40029,2500.8,2500.7,8.76273365]
[1730047639609,0.40029,2500.9,2500.8,0.40027]
[1730047639800,1.23926,2501.1,2501.0,0.40024]
[1730047639997,1.23926,2501.1,2501.0,4.76347365]
[1730047640703,0.40026,2501.1,2501.0,4.76347365]
[1730047643411,2.47953365,2501.3,2501.0,8.36163365]
[1730047643412,1.3241,2501.3,2501.0,8.36163365]
[1730047643714,0.40024,2501.2,2501.1,0.40022]
[1730047644314,0.40024,2501.2,2501.1,4.39862]
[1730047644511,1.72431,2501.3,2501.2,0.40022]
[1730047644812,0.40021,2501.3,2501.2,1.55565365]
[1730047645002,0.4596,2501.5,2501.2,1.15543365]
[1730047645209,0.85977,2501.5,2501.4,1.15543365]
[1730047645403,0.40017,2501.5,2501.4,1.55562365]
[1730047645606,0.40017,2501.5,2501.4,5.55322365]
[1730047647208,1.55560365,2501.5,2501.4,3.9976]
[1730047647407,1.55560365,2501.5,2501.4,2.13893365]
[1730047648413,0.40017,2501.5,2501.4,2.13893365]
[1730047648809,0.40017,2501.5,2501.4,6.53672365]
[1730047649005,0.40017,2501.5,2501.4,2.13893365]
[1730047649205,0.89397,2501.5,2501.4,2.13893365]
[1730047652312,0.89397,2501.5,2501.3,3.2078]
[1730047652313,0.40019,2501.4,2501.3,3.2078]
[1730047652617,2.03652365,2501.4,2501.3,3.2078]
[1730047654513,2.03652365,2501.4,2501.1,4.36323365]
[1730047654514,0.40022,2501.2,2501.1,4.36323365]
[1730047656620,0.40022,2501.2,2501.1,4.76347365]
[1730047656920,0.87941,2501.3,2501.2,0.40022]
[1730047657119,0.40021,2501.3,2501.2,1.55565365]
[1730047657413,0.40021,2501.3,2501.2,5.55405365]
[1730047659723,0.4938,2501.5,2501.2,5.15383365]
[1730047659912,0.4002,2501.4,2501.3,0.40019]
[1730047660114,0.4002,2501.4,2501.3,1.55562365]
[1730047661022,0.40022,2501.3,2501.2,0.40021]
[1730047661321,0.90112,2501.3,2501.2,1.55564365]
[1730047661514,0.90112,2501.3,2501.2,5.55404365]
[1730047662422,0.40022,2501.3,2501.2,5.55404365]
[1730047663025,0.40022,2501.3,2501.2,1.55564365]
[1730047663414,0.40022,2501.3,2501.2,5.55404365]
[1730047663615,0.40022,2501.3,2501.2,1.55564365]
[1730047663823,0.40022,2501.3,2501.2,5.55404365]
[1730047664420,0.40022,2501.3,2501.2,1.55564365]
[1730047665025,0.4002,2501.4,2501.3,0.40019]
[1730047665226,0.4002,2501.4,2501.3,1.55562365]
[1730047666825,0.40019,2501.5,2501.4,0.40018]
[1730047667010,0.5022,2501.6,2501.4,8.87213365]
[1730047667214,0.5022,2501.6,2501.5,1.55560365]
[1730047667215,0.40016,2501.6,2501.5,1.55560365]
[1730047667619,0.40016,2501.6,2501.5,5.55320365]
[1730047667815,0.40016,2501.6,2501.5,1.55560365]
[1730047668014,0.90236,2501.6,2501.5,1.55560365]
[1730047668818,0.90236,2501.6,2501.5,1.15543365]
[1730047670619,1.65763365,2501.6,2501.4,3.2078]
[1730047670827,0.40017,2501.5,2501.4,3.2078]
[1730047671218,0.40017,2501.5,2501.4,4.36323365]
[1730047673618,0.40017,2501.5,2501.4,3.2078]
[1730047673820,0.40024,2501.2,2501.1,0.40023]
[1730047674015,0.40024,2501.2,2501.1,1.55566365]
[1730047676427,0.40024,2501.2,2501.1,4.76346365]
[1730047677028,0.40024,2501.2,2501.1,5.25376365]
[1730047678727,0.907,2501.4,2501.3,0.40021]
[1730047678932,0.907,2501.4,2501.3,1.55564365]
[1730047679127,0.907,2501.4,2501.3,1.15543365]
[1730047679326,0.907,2501.4,2501.3,1.55564365]
[1730047679525,0.907,2501.4,2501.3,0.40021]
[1730047680126,0.5068,2501.4,2501.2,1.15543365]
[1730047680323,0.40021,2501.3,2501.2,0.40021]
[1730047680531,0.40021,2501.3,2501.2,1.55564365]
[1730047681534,0.907,2501.4,2501.3,0.40021]
[1730047681831,0.907,2501.4,2501.3,0.88541]
[1730047682035,0.4834,2501.6,2501.3,4.4828]
[1730047682227,0.40017,2501.6,2501.5,1.55559365]
[1730047683726,0.4663,2501.7,2501.5,1.15543365]
[1730047683931,0.86645,2501.7,2501.6,1.55559365]
[1730047684329,0.86645,2501.7,2501.6,1.15543365]
[1730047684534,0.86645,2501.7,2501.6,0.40016]
[1730047684732,0.4663,2501.7,2501.5,1.15543365]
[1730047684932,0.4663,2501.7,2501.5,1.55559365]
[1730047684933,0.40016,2501.6,2501.5,1.55559365]
[1730047685327,0.86646,2501.7,2501.6,0.40016]
[1730047685635,0.86646,2501.7,2501.6,1.55559365]
[1730047687636,0.40017,2501.5,2501.4,3.2078]
[1730047687832,0.40017,2501.5,2501.4,4.36323365]
[1730047688238,0.40017,2501.5,2501.4,4.76342365]
[1730047688539,0.40017,2501.5,2501.4,4.36323365]
[1730047688937,0.40017,2501.5,2501.4,8.76102365]
[1730047690838,0.40017,2501.5,2501.4,4.76342365]
[1730047692338,0.40017,2501.5,2501.4,4.36323365]
[1730047692535,0.40017,2501.5,2501.4,4.76342365]
[1730047694038,4.39777,2501.5,2501.4,3.2078]
[1730047694232,0.40017,2501.5,2501.4,3.2078]
[1730047694937,0.40017,2501.5,2501.4,4.36323365]
[1730047695135,0.40017,2501.5,2501.4,4.76342365]
[1730047695333,0.40017,2501.5,2501.4,4.36323365]
[1730047695941,0.40017,2501.5,2501.4,4.86693365]
[1730047696147,0.40017,2501.5,2501.4,5.26712365]
[1730047697044,0.40017,2501.5,2501.4,4.86693365]
[1730047697339,0.40017,2501.5,2501.4,5.26712365]
[1730047698935,1.23917,2501.6,2501.5,0.40017]
[1730047699139,1.23917,2501.6,2501.5,1.55560365]
[1730047699533,0.4748,2501.8,2501.5,5.15303365]
[1730047699740,0.40013,2501.9,2501.8,0.40011]
[1730047700043,0.40013,2501.9,2501.8,1.55554365]
[1730047704944,0.40013,2501.8,2501.7,3.2078]
[1730047705135,1.57253365,2501.8,2501.6,1.15543365]
[1730047705438,0.81294,2501.7,2501.6,1.15543365]
[1730047706041,0.81294,2501.7,2501.6,1.55559365]
[1730047708436,0.40014,2501.7,2501.6,1.55559365]
[1730047708643,0.40014,2501.8,2501.7,0.40013]
[1730047708835,0.4232,2501.9,2501.7,4.36323365]
[1730047709144,0.82332,2501.9,2501.8,1.98206365]
[1730047709538,0.82331,2501.9,2501.8,1.98206365]
[1730047710342,0.40011,2501.9,2501.8,1.98206365]
[1730047710642,0.81221,2501.9,2501.8,1.98206365]
[1730047711937,0.81221,2501.9,2501.8,3.03268093]
[1730047712850,0.84851,2502.0,2501.9,0.40011]
[1730047713146,0.83289,2502.1,2502.0,0.40009]
[1730047713337,0.83289,2502.1,2502.0,4.76332365]
[1730047713647,0.40009,2502.1,2502.0,8.76012365]
[1730047713946,0.40009,2502.1,2502.0,9.81074093]
[1730047714644,0.40009,2502.1,2502.0,8.76012365]
[1730047715144,0.40009,2502.1,2502.0,9.20522365]
[1730047718552,0.40009,2502.1,2502.0,5.20842365]
[1730047719143,0.40009,2502.1,2502.0,9.20522365]
[1730047719344,0.40009,2502.1,2502.0,5.20842365]
[1730047720054,0.40009,2502.1,2502.0,9.20522365]
[1730047720847,0.40009,2502.1,2502.0,5.20842365]
[1730047721049,0.40009,2502.1,2502.0,9.20522365]
[1730047721256,0.40009,2502.1,2502.0,5.20842365]
[1730047721458,0.40009,2502.1,2502.0,9.20522365]
[1730047721756,0.40009,2502.1,2502.0,5.20842365]
[1730047723749,0.40009,2502.1,2502.0,5.63662365]
[1730047728263,0.40009,2502.1,2502.0,9.63342365]
[1730047732463,0.40007,2502.2,2502.1,0.40005]
[1730047732664,0.40007,2502.2,2502.1,1.55548365]
[1730047733463,0.40007,2502.2,2502.1,5.55228365]
[1730047735368,0.40007,2502.2,2502.1,1.55548365]
[1730047736769,0.40007,2502.2,2502.1,5.55228365]
[1730047737269,0.40007,2502.2,2502.1,1.55548365]
[1730047738078,0.40007,2502.2,2502.1,0.40005]
[1730047738275,0.40007,2502.2,2502.1,1.55548365]
[1730047740073,0.40007,2502.2,2502.1,4.76328365]
[1730047741464,0.40007,2502.2,2502.1,1.55548365]
[1730047741860,0.40007,2502.2,2502.1,4.76328365]
[1730047743769,1.43289,2502.4,2502.1,4.36323365]
[1730047743966,0.83283,2502.4,2502.3,1.55548365]
[1730047745369,0.83283,2502.4,2502.3,4.76328365]
[1730047749179,0.83283,2502.4,2502.3,3.2078]
[1730047749478,0.83283,2502.4,2502.3,4.36323365]
[1730047749676,4.82883,2502.4,2502.3,3.2078]
[1730047749974,0.40008,2502.1,2502.0,1.15543365]
[1730047750172,1.00019,2502.2,2501.8,1.05061728]
[1730047750378,0.40014,2501.7,2501.6,4.25841728]
[1730047750567,0.40014,2501.7,2501.6,3.2078]
[1730047750881,0.40014,2501.7,2501.6,4.36323365]
[1730047751273,0.40014,2501.7,2501.6,4.76339365]
[1730047753575,0.40014,2501.7,2501.6,4.36323365]
[1730047754078,0.84454,2501.7,2501.6,4.36323365]
[1730047754794,0.84454,2501.7,2501.6,5.36259405]
[1730047755779,0.84454,2501.7,2501.6,2.15479405]
[1730047757677,0.84454,2501.7,2501.6,0.9993604]
[1730047757881,0.84454,2501.7,2501.6,2.15479405]
[1730047758275,6.83557365,2501.7,2501.6,0.9993604]
[1730047761084,5.68014,2501.7,2501.6,0.9993604]
[1730047761286,1.68254,2501.7,2501.6,2.15479405]
[1730047761887,5.68014,2501.7,2501.6,2.15479405]
[1730047763484,4.84214,2501.7,2501.6,2.15479405]
[1730047763786,6.11394,2501.7,2501.6,2.15479405]
[1730047764787,6.11394,2501.7,2501.6,2.55495405]
[1730047765182,2.11634,2501.7,2501.6,2.55495405]
[1730047766385,6.11394,2501.7,2501.6,2.55495405]
[1730047766783,0.83394,2501.7,2501.6,2.55495405]
[1730047766985,0.83394,2501.7,2501.6,2.99345405]
[1730047766986,0.4338,2501.7,2501.6,2.99345405]
[1730047768191,0.83394,2501.7,2501.6,2.99345405]
[1730047768390,0.4338,2501.7,2501.6,2.99345405]
[1730047768891,0.83394,2501.7,2501.6,2.99345405]
[1730047770886,0.838,2501.9,2501.6,2.59329405]
[1730047771189,1.65681,2501.9,2501.8,1.55556365]
[1730047771896,1.65681,2501.9,2501.8,1.15543365]
[1730047773996,1.65681,2501.9,2501.8,1.55556365]
[1730047774995,1.65681,2501.9,2501.8,1.15543365]
[1730047778890,7.40924365,2501.9,2501.6,0.9993604]
[1730047779092,1.55557365,2501.7,2501.6,0.9993604]
[1730047779587,5.55317365,2501.7,2501.6,0.9993604]
[1730047797836,1.55557365,2501.7,2501.6,0.9993604]
[1730047798520,5.55317365,2501.7,2501.6,0.9993604]
[1730047798826,1.55557365,2501.7,2501.6,0.9993604]
[1730047801227,0.40014,2501.7,2501.6,2.15479405]
[1730047801420,1.23814,2501.7,2501.6,2.55495405]
[1730047801621,0.40014,2501.7,2501.6,2.55495405]
[1730047801920,1.23814,2501.7,2501.6,2.55495405]
[1730047802319,0.838,2501.7,2501.6,2.55495405]
[1730047802623,1.23814,2501.7,2501.6,2.55495405]
[1730047803021,1.15543365,2501.9,2501.6,2.15479405]
[1730047803227,2.39354365,2501.9,2501.8,1.15543365]
[1730047803419,1.23811,2501.9,2501.8,1.55556365]
[1730047803617,0.40011,2501.9,2501.8,2.01453365]
[1730047803820,1.23811,2501.9,2501.8,2.41466365]
[1730047804418,0.838,2501.9,2501.8,2.41466365]
[1730047804622,0.40011,2501.9,2501.8,2.41466365]
[1730047804922,3.02583365,2502.2,2501.9,0.4001]
[1730047804923,1.23811,2502.0,2501.9,0.4001]
[1730047805123,1.23811,2502.0,2501.9,1.55553365]
[1730047805827,2.39354365,2502.0,2501.9,1.15543365]
[1730047806212,0.40011,2501.9,2501.8,2.01453365]
[1730047806526,1.55554365,2501.9,2501.8,2.01453365]